﻿Department family,Entity,Date,Expense type,Expense area,Supplier,Transaction number,Amount,VAT registration number
Dept of Health,MHRA,02/08/2017,Application Services and Maintenance,Information Management,Capita IT Services Ltd,6051013179,"33,008.44",618184140
Dept of Health,MHRA,02/08/2017,Help Desk and End User Support,Information Management,IDE Group Manage Limited,OP/0131266,"35,835.20",123385037
Dept of Health,MHRA,04/08/2017,Infrastructure Services and Maintenance,Information Management,Oracle Corporation UK Limited,1599533,"54,445.20",391313073
Dept of Health,MHRA,04/08/2017,Infrastructure Services and Maintenance,Information Management,Trustmarque Solutions Limited,2261675,"49,216.15",394593601
Dept of Health,MHRA,09/08/2017,Travel and Subsistence,Finance & Procurement,Clarity Travel Management,MHRA0016,"155,599.17",197694731
Dept of Health,MHRA,09/08/2017,Library & Periodical Subscriptions,Communications,ProQuest LLC,70352984,"49,471.21",
Dept of Health,MHRA,09/08/2017,Infrastructure Services and Maintenance,Information Management,Accenture (UK) Limited,3003363524,"26,307.66",788629066
Dept of Health,MHRA,09/08/2017,"Service, Integration & Management (SIAM)",Information Management,Accenture (UK) Limited,3003363559,"88,287.47",788629066
Dept of Health,MHRA,09/08/2017,Application Services and Maintenance,Information Management,Accenture (UK) Limited,3003363787,"154,414.80",788629066
Dept of Health,MHRA,09/08/2017,Application Services and Maintenance,Information Management,Accenture (UK) Limited,3003363802,"33,705.42",788629066
Dept of Health,MHRA,09/08/2017,Application Services and Maintenance,Information Management,Accenture (UK) Limited,3003364385,"26,500.01",788629066
Dept of Health,MHRA,09/08/2017,Help Desk and End User Support,Information Management,IDE Group Manage Limited,OP/0131626,"35,835.20",123385037
Dept of Health,MHRA,09/08/2017,Help Desk and End User Support,Information Management,IDE Group Manage Limited,OP/0131627,"39,650.00",123385037
Dept of Health,MHRA,09/08/2017,Application Services and Maintenance,Information Management,Networkers International (UK) Ltd,411173608,"30,694.26",766375002
Dept of Health,MHRA,09/08/2017,SIAM - Enterprise Architecture,Information Management,Redrock Consulting Ltd,7025,"41,754.72",862247715
Dept of Health,MHRA,09/08/2017,"Service, Integration & Management (SIAM)",Information Management,Redrock Consulting Ltd,7027,"83,550.68",862247715
Dept of Health,MHRA,09/08/2017,Software & Licences,Information Management,Trustmarque Solutions Limited,2256853,"40,363.78",394593601
Dept of Health,MHRA,09/08/2017,Software & Licences,Information Management,Trustmarque Solutions Limited,2257375,"25,800.00",394593601
Dept of Health,MHRA,09/08/2017,Infrastructure Services and Maintenance,Information Management,XMA Limited,XM23936,"34,440.00",115091937
Dept of Health,MHRA,11/08/2017,Software & Licences,Information Management,Insight Networking Solutions,3371545,"39,357.17",746075129
Dept of Health,MHRA,11/08/2017,Application Services and Maintenance,Information Management,Red Ant Digital Ltd.,INV-07670,"67,200.00",123388322
Dept of Health,MHRA,11/08/2017,Infrastructure Services and Maintenance,Information Management,Redrock Consulting Ltd,6756,"116,943.10",862247715
Dept of Health,MHRA,11/08/2017,"Service, Integration & Management (SIAM)",Information Management,Redrock Consulting Ltd,6760,"80,489.27",862247715
Dept of Health,MHRA,16/08/2017,Laboratory Consumables,Standards,Adelphi Healthcare Packaging,83897,"30,021.16",768809568
Dept of Health,MHRA,16/08/2017,Software & Licences,Information Management,ABM Intelligence Ltd,ABM1638,"39,606.00",930920734
Dept of Health,MHRA,16/08/2017,Application Services and Maintenance,Information Management,Accenture (UK) Limited,3003365014,"25,639.20",788629066
Dept of Health,MHRA,16/08/2017,Application Services and Maintenance,Information Management,Accenture (UK) Limited,3003365026,"265,145.72",788629066
Dept of Health,MHRA,16/08/2017,Testing Services,Information Management,Certus Solutions Consulting Services Ltd,INV002069,"40,290.00",190984664
Dept of Health,MHRA,16/08/2017,Testing Services,Information Management,Certus Solutions Consulting Services Ltd,INV002095,"135,785.63",190984664
Dept of Health,MHRA,16/08/2017,Testing Services,Information Management,Certus Solutions Consulting Services Ltd,INV002104,"95,358.00",190984664
Dept of Health,MHRA,16/08/2017,Application Services and Maintenance,Information Management,GB Group PLC,226740,"29,388.00",539716218
Dept of Health,MHRA,16/08/2017,Infrastructure Services and Maintenance,Information Management,NTT Data UK Ltd,4009829,"138,788.60",159334590
Dept of Health,MHRA,16/08/2017,Infrastructure Services and Maintenance,Information Management,Redrock Consulting Ltd,6948,"29,361.60",862247715
Dept of Health,MHRA,16/08/2017,Application Services and Maintenance,Information Management,Redrock Consulting Ltd,6956,"84,708.36",862247715
Dept of Health,MHRA,16/08/2017,Networks,Information Management,Switch Communications Ltd,20170231978,"33,856.98",611903863
Dept of Health,MHRA,18/08/2017,Building Maintenance & Repairs,Operations,Mulalley and Company Limited,1707/078A,"33,695.32",345717150
Dept of Health,MHRA,18/08/2017,Application Services and Maintenance,Information Management,Accenture (UK) Limited,3003365457,"77,145.60",788629066
Dept of Health,MHRA,18/08/2017,Software & Licences,Information Management,Specialist Computer Centres,OP/ M325519,"48,792.57",313651680
Dept of Health,MHRA,21/08/2017,Computer Equipment & Peripherals,Information Management,XMA Limited,BR91585,"26,517.50",115091937
Dept of Health,MHRA,24/08/2017,Security,Operations,ISS Facility Services Limited,SLINVS/44003775,"26,219.99",945751887
Dept of Health,MHRA,24/08/2017,Accommodation Rates,Facilities & Estates,Department for Business Energy and Industrial Strategy,6.1511E+11,"420,746.80",888825550
Dept of Health,MHRA,24/08/2017,Accommodation Rent,Facilities & Estates,Department for Business Energy and Industrial Strategy,6.1511E+11,"1,076,787.81",888825550
Dept of Health,MHRA,24/08/2017,Accommodation Service Charge,Facilities & Estates,Department for Business Energy and Industrial Strategy,6.1511E+11,"190,510.23",888825550
Dept of Health,MHRA,24/08/2017,Building Maintenance & Repairs,Facilities & Estates,Department for Business Energy and Industrial Strategy,6.1511E+11,"16,394.37",888825550
Dept of Health,MHRA,24/08/2017,Cleaning,Facilities & Estates,Department for Business Energy and Industrial Strategy,6.1511E+11,"24,897.77",888825550
Dept of Health,MHRA,24/08/2017,Electricity,Facilities & Estates,Department for Business Energy and Industrial Strategy,6.1511E+11,"46,021.50",888825550
Dept of Health,MHRA,24/08/2017,Facilities Management & Portering,Facilities & Estates,Department for Business Energy and Industrial Strategy,6.1511E+11,"20,614.90",888825550
Dept of Health,MHRA,24/08/2017,Security,Facilities & Estates,Department for Business Energy and Industrial Strategy,6.1511E+11,"32,229.69",888825550
Dept of Health,MHRA,24/08/2017,Staff Restaurant,Facilities & Estates,Department for Business Energy and Industrial Strategy,6.1511E+11,"25,062.98",888825550
Dept of Health,MHRA,24/08/2017,Infrastructure Services and Maintenance,Information Management,Microsoft Ltd,9620956210,"42,577.92",724594615
Dept of Health,MHRA,24/08/2017,Infrastructure Services and Maintenance,Information Management,Millgate Computer Systems Ltd,367939,"26,802.24",678992255
Dept of Health,MHRA,24/08/2017,Application Services and Maintenance,Information Management,Redrock Consulting Ltd,6965,"41,614.37",862247715
Dept of Health,MHRA,24/08/2017,Application Services and Maintenance,Information Management,Redrock Consulting Ltd,7039,"218,278.92",862247715
Dept of Health,MHRA,25/08/2017,Solicitors,Human Resources,Government Legal Department,439388,"59,362.08",888823066
Dept of Health,MHRA,25/08/2017,Contracted Out Services Miscellaneous,Transformation,PA Consulting Services Ltd,10120012,"217,038.00",238535057
Dept of Health,MHRA,25/08/2017,Solicitors,Policy,Government Legal Department,A2469,"185,400.00",888823066
Dept of Health,MHRA,29/08/2017,Application Services and Maintenance,Information Management,FDM Group ltd,229892-FM,"208,152.00",583540529
Dept of Health,MHRA,29/08/2017,Application Services and Maintenance,Information Management,FDM Group ltd,234587-FM,"139,344.18",583540529
Dept of Health,MHRA,29/08/2017,Infrastructure Services and Maintenance,Information Management,Sungard Availability Services (UK) Limited,17003709,"172,860.98",823829709
Dept of Health,MHRA,30/08/2017,Security,Operations,ISS Facility Services Limited,SLINVS/44003226,"26,219.99",945751887
Dept of Health,MHRA,30/08/2017,Security,Operations,ISS Facility Services Limited,SLINVS/44003438,"26,219.99",945751887
